[Event "Titled Tuesday Blitz March 07 Early 2023"]
[White "Zhukova, Natalia"]
[Black "Kokoszczynski, Jan"]
[WhiteFideId "14101513"]
[BlackFideId "1174460"]
[WhiteElo "2297"]
[BlackElo "2139"]
[Result "0-1"]
[Round "05"]
[TimeControl "180+2"]
[Date "2023.03.07"]
[WhiteClock "0:00:01"]
[BlackClock "0:00:05"]

1. c4 {[%clk 0:02:56]}  c6 {[%clk 0:02:58]} 2. e4 {[%clk 0:02:55]}  d5 {[%clk 0:02:57]} 3. exd5 {[%clk 0:02:56]}  cxd5 {[%clk 0:02:58]} 4. d4 {[%clk 0:02:55]}  Nf6 {[%clk 0:02:56]} 5. Nc3 {[%clk 0:02:55]}  Nc6 {[%clk 0:02:52]} 6. Nf3 {[%clk 0:02:54]}  Be6 {[%clk 0:02:52]} 7. Bg5 {[%clk 0:02:34]}  g6 {[%clk 0:02:32]} 8. Bxf6 {[%clk 0:02:07]}  exf6 {[%clk 0:02:31]} 9. Qb3 {[%clk 0:02:03]}  Bb4 {[%clk 0:01:56]} 10. a3 {[%clk 0:01:30]}  Bxc3+ {[%clk 0:01:52]} 11. bxc3 {[%clk 0:01:30]}  O-O {[%clk 0:01:49]} 12. c5 {[%clk 0:01:21]}  Re8 {[%clk 0:01:46]} 13. Be2 {[%clk 0:01:19]}  Bf5 {[%clk 0:01:33]} 14. Qd1 {[%clk 0:01:06]}  Qa5 {[%clk 0:01:24]} 15. Qd2 {[%clk 0:00:59]}  b6 {[%clk 0:01:10]} 16. cxb6 {[%clk 0:00:58]}  axb6 {[%clk 0:01:10]} 17. O-O {[%clk 0:00:58]}  Rac8 {[%clk 0:01:10]} 18. a4 {[%clk 0:00:54]}  Re7 {[%clk 0:01:06]} 19. Bd3 {[%clk 0:00:44]}  Bxd3 {[%clk 0:01:03]} 20. Qxd3 {[%clk 0:00:45]}  Rec7 {[%clk 0:01:02]} 21. Qb5 {[%clk 0:00:30]}  Qxb5 {[%clk 0:01:00]} 22. axb5 {[%clk 0:00:31]}  Na5 {[%clk 0:01:00]} 23. h3 {[%clk 0:00:16]}  Rxc3 {[%clk 0:01:00]} 24. Rfe1 {[%clk 0:00:17]}  Rb3 {[%clk 0:00:50]} 25. Rab1 {[%clk 0:00:17]}  Rxb1 {[%clk 0:00:48]} 26. Rxb1 {[%clk 0:00:17]}  Rc2 {[%clk 0:00:48]} 27. g4 {[%clk 0:00:12]}  Kf8 {[%clk 0:00:29]} 28. Kg2 {[%clk 0:00:12]}  Ke7 {[%clk 0:00:28]} 29. Kg3 {[%clk 0:00:12]}  Kd6 {[%clk 0:00:23]} 30. h4 {[%clk 0:00:11]}  Nc4 {[%clk 0:00:20]} 31. Ra1 {[%clk 0:00:09]}  Rc3 {[%clk 0:00:19]} 32. Kg2 {[%clk 0:00:07]}  Ra3 {[%clk 0:00:19]} 33. Re1 {[%clk 0:00:07]}  Rb3 {[%clk 0:00:18]} 34. Re8 {[%clk 0:00:06]}  Rxb5 {[%clk 0:00:17]} 35. Rh8 {[%clk 0:00:07]}  Rb2 {[%clk 0:00:15]} 36. Rxh7 {[%clk 0:00:07]}  Ke6 {[%clk 0:00:14]} 37. Rh8 {[%clk 0:00:07]}  b5 {[%clk 0:00:14]} 38. h5 {[%clk 0:00:07]}  gxh5 {[%clk 0:00:14]} 39. gxh5 {[%clk 0:00:07]}  b4 {[%clk 0:00:14]} 40. h6 {[%clk 0:00:08]}  Ne3+ {[%clk 0:00:09]} 41. Kh3 {[%clk 0:00:03]}  Rxf2 {[%clk 0:00:08]} 42. h7 {[%clk 0:00:03]}  Rxf3+ {[%clk 0:00:08]} 43. Kh4 {[%clk 0:00:03]}  Rf4+ {[%clk 0:00:08]} 44. Kh3 {[%clk 0:00:03]}  Rf3+ {[%clk 0:00:08]} 45. Kh2 {[%clk 0:00:03]}  Ng4+ {[%clk 0:00:07]} 46. Kg2 {[%clk 0:00:03]}  Rf2+ {[%clk 0:00:07]} 47. Kg3 {[%clk 0:00:04]}  Rh2 {[%clk 0:00:07]} 48. Kxg4 {[%clk 0:00:04]}  Ke7 {[%clk 0:00:07]} 49. Kg3 {[%clk 0:00:02]}  Rh6 {[%clk 0:00:06]} 50. Rb8 {[%clk 0:00:01]}  Rxh7 {[%clk 0:00:06]} 51. Rxb4 {[%clk 0:00:02]}  Rh1 {[%clk 0:00:05]} 52. Kf4 {[%clk 0:00:01]}  Rf1+ {[%clk 0:00:05]} 53. Ke3 {[%clk 0:00:01]}  Ke6 {[%clk 0:00:05]} 54. Kd3 {[%clk 0:00:02]}  Rf3+ {[%clk 0:00:05]} 55. Ke2 {[%clk 0:00:01]}  Ra3 {[%clk 0:00:05]} 0-1


[Site "https://www.chess.com"]

[Event "Titled Tuesday Blitz March 07 Early 2023"]
[White "Bas Mas, Jose Joaquin"]
[Black "Arencibia Monduy, Antonio"]
[WhiteFideId "22219064"]
[BlackFideId "3507939"]
[WhiteElo "2233"]
[BlackElo "2515"]
[Result "0-1"]
[Round "05"]
[TimeControl "180+2"]
[Date "2023.03.07"]
[WhiteClock "0:00:13"]
[BlackClock "0:00:24"]

1. e4 {[%clk 0:03:00]}  e6 {[%clk 0:03:00]} 2. d4 {[%clk 0:03:00]}  d5 {[%clk 0:03:00]} 3. e5 {[%clk 0:03:01]}  c5 {[%clk 0:02:59]} 4. c3 {[%clk 0:03:01]}  cxd4 {[%clk 0:02:58]} 5. Nf3 {[%clk 0:03:00]}  Nc6 {[%clk 0:02:59]} 6. Bd3 {[%clk 0:02:57]}  Nge7 {[%clk 0:02:59]} 7. O-O {[%clk 0:02:57]}  Nf5 {[%clk 0:03:00]} 8. Re1 {[%clk 0:02:47]}  Be7 {[%clk 0:02:58]} 9. cxd4 {[%clk 0:02:46]}  Qb6 {[%clk 0:02:22]} 10. Bxf5 {[%clk 0:02:45]}  exf5 {[%clk 0:02:22]} 11. Nc3 {[%clk 0:02:46]}  Be6 {[%clk 0:02:22]} 12. a3 {[%clk 0:02:21]}  h6 {[%clk 0:02:17]} 13. Na4 {[%clk 0:02:10]}  Qd8 {[%clk 0:02:13]} 14. b4 {[%clk 0:01:54]}  O-O {[%clk 0:02:11]} 15. Bb2 {[%clk 0:01:49]}  Rc8 {[%clk 0:02:11]} 16. Rc1 {[%clk 0:01:48]}  b6 {[%clk 0:02:05]} 17. Qd3 {[%clk 0:01:40]}  Qd7 {[%clk 0:02:04]} 18. Nc3 {[%clk 0:01:25]}  Rfd8 {[%clk 0:01:31]} 19. Re2 {[%clk 0:01:24]}  f4 {[%clk 0:01:25]} 20. b5 {[%clk 0:01:15]}  Na5 {[%clk 0:01:23]} 21. Nd2 {[%clk 0:01:06]}  g5 {[%clk 0:01:20]} 22. h4 {[%clk 0:01:03]}  Bf5 {[%clk 0:01:18]} 23. Qf3 {[%clk 0:01:02]}  Nc4 {[%clk 0:01:02]} 24. Nxc4 {[%clk 0:00:58]}  Rxc4 {[%clk 0:01:02]} 25. Rd2 {[%clk 0:00:51]}  Kg7 {[%clk 0:00:57]} 26. g3 {[%clk 0:00:38]}  Bg4 {[%clk 0:00:53]} 27. Qd3 {[%clk 0:00:38]}  f3 {[%clk 0:00:47]} 28. Re1 {[%clk 0:00:30]}  Qe6 {[%clk 0:00:43]} 29. Re3 {[%clk 0:00:27]}  gxh4 {[%clk 0:00:41]} 30. Rxf3 {[%clk 0:00:26]}  Bxf3 {[%clk 0:00:41]} 31. Qxf3 {[%clk 0:00:27]}  hxg3 {[%clk 0:00:41]} 32. Qxg3+ {[%clk 0:00:15]}  Kh8 {[%clk 0:00:41]} 33. Kf1 {[%clk 0:00:13]}  Rg8 {[%clk 0:00:40]} 34. Qf3 {[%clk 0:00:13]}  Rd8 {[%clk 0:00:25]} 35. Qf4 {[%clk 0:00:13]}  Bg5 {[%clk 0:00:24]} 0-1


[Site "https://www.chess.com"]

[Event "Titled Tuesday Blitz March 07 Early 2023"]
[White "Lehtosaari, Mauri"]
[Black "Andrews, Todd"]
[WhiteFideId "501999"]
[BlackFideId "2012456"]
[WhiteElo "2514"]
[BlackElo "2401"]
[Result "1-0"]
[Round "05"]
[TimeControl "180+2"]
[Date "2023.03.07"]
[WhiteClock "0:00:11"]
[BlackClock "0:00:12"]

1. d4 {[%clk 0:03:00]}  Nf6 {[%clk 0:02:34]} 2. Nf3 {[%clk 0:03:00]}  c5 {[%clk 0:02:34]} 3. c3 {[%clk 0:02:58]}  g6 {[%clk 0:02:34]} 4. Bg5 {[%clk 0:02:57]}  Bg7 {[%clk 0:02:33]} 5. Nbd2 {[%clk 0:02:54]}  cxd4 {[%clk 0:02:33]} 6. cxd4 {[%clk 0:02:55]}  d5 {[%clk 0:02:32]} 7. e3 {[%clk 0:02:55]}  O-O {[%clk 0:02:32]} 8. Bd3 {[%clk 0:02:50]}  Nc6 {[%clk 0:02:33]} 9. O-O {[%clk 0:02:47]}  b6 {[%clk 0:02:28]} 10. Rc1 {[%clk 0:02:46]}  Nb4 {[%clk 0:02:28]} 11. Be2 {[%clk 0:02:28]}  Ba6 {[%clk 0:02:24]} 12. Bxa6 {[%clk 0:02:19]}  Nxa6 {[%clk 0:02:24]} 13. Ne5 {[%clk 0:02:13]}  Rc8 {[%clk 0:02:14]} 14. Qa4 {[%clk 0:02:06]}  Nb8 {[%clk 0:01:43]} 15. Qxa7 {[%clk 0:01:57]}  Re8 {[%clk 0:01:27]} 16. Qb7 {[%clk 0:01:41]}  Nfd7 {[%clk 0:01:17]} 17. Nxd7 {[%clk 0:01:01]}  Nxd7 {[%clk 0:01:16]} 18. Qxd5 {[%clk 0:00:42]}  h6 {[%clk 0:01:09]} 19. Bh4 {[%clk 0:00:42]}  g5 {[%clk 0:01:04]} 20. Bg3 {[%clk 0:00:42]}  e5 {[%clk 0:01:04]} 21. Nf3 {[%clk 0:00:38]}  exd4 {[%clk 0:00:44]} 22. Nxd4 {[%clk 0:00:36]}  Nc5 {[%clk 0:00:43]} 23. Qxd8 {[%clk 0:00:33]}  Rexd8 {[%clk 0:00:44]} 24. b4 {[%clk 0:00:31]}  Nd3 {[%clk 0:00:38]} 25. Rxc8 {[%clk 0:00:30]}  Rxc8 {[%clk 0:00:39]} 26. b5 {[%clk 0:00:29]}  Bxd4 {[%clk 0:00:33]} 27. exd4 {[%clk 0:00:30]}  Rc2 {[%clk 0:00:34]} 28. Ra1 {[%clk 0:00:27]}  Rb2 {[%clk 0:00:22]} 29. a4 {[%clk 0:00:26]}  Nb4 {[%clk 0:00:21]} 30. h4 {[%clk 0:00:24]}  Nc2 {[%clk 0:00:16]} 31. Rc1 {[%clk 0:00:23]}  Nxd4 {[%clk 0:00:15]} 32. Rc8+ {[%clk 0:00:21]}  Kh7 {[%clk 0:00:15]} 33. hxg5 {[%clk 0:00:20]}  hxg5 {[%clk 0:00:15]} 34. Rb8 {[%clk 0:00:19]}  Rb1+ {[%clk 0:00:14]} 35. Kh2 {[%clk 0:00:19]}  f5 {[%clk 0:00:14]} 36. Be5 {[%clk 0:00:19]}  Ne2 {[%clk 0:00:12]} 37. Rb7+ {[%clk 0:00:17]}  Kg6 {[%clk 0:00:11]} 38. Rxb6+ {[%clk 0:00:18]}  Kh5 {[%clk 0:00:12]} 39. f3 {[%clk 0:00:17]}  g4 {[%clk 0:00:12]} 40. fxg4+ {[%clk 0:00:17]}  fxg4 {[%clk 0:00:12]} 41. Rb8 {[%clk 0:00:17]}  Kg5 {[%clk 0:00:10]} 42. Re8 {[%clk 0:00:14]}  Kf5 {[%clk 0:00:11]} 43. Bg3 {[%clk 0:00:13]}  Nc3 {[%clk 0:00:08]} 44. Re5+ {[%clk 0:00:12]}  Kf6 {[%clk 0:00:09]} 45. Rc5 {[%clk 0:00:12]}  Nxa4 {[%clk 0:00:09]} 46. Rc4 {[%clk 0:00:12]}  Nb6 {[%clk 0:00:07]} 47. Rc6+ {[%clk 0:00:12]}  Kf5 {[%clk 0:00:07]} 48. Rxb6 {[%clk 0:00:13]}  Rb4 {[%clk 0:00:06]} 49. Rb8 {[%clk 0:00:13]}  Ke6 {[%clk 0:00:06]} 50. b6 {[%clk 0:00:13]}  Kd7 {[%clk 0:00:06]} 51. b7 {[%clk 0:00:12]}  Kc6 {[%clk 0:00:06]} 52. Rg8 {[%clk 0:00:12]}  Rxb7 {[%clk 0:00:05]} 53. Rxg4 {[%clk 0:00:12]}  Rh7+ {[%clk 0:00:06]} 54. Rh4 {[%clk 0:00:11]}  Rg7 {[%clk 0:00:06]} 55. Kh3 {[%clk 0:00:11]}  Kd5 {[%clk 0:00:07]} 56. Bf2 {[%clk 0:00:10]}  Ke6 {[%clk 0:00:07]} 57. Rf4 {[%clk 0:00:10]}  Ke5 {[%clk 0:00:07]} 58. g3 {[%clk 0:00:10]}  Rh7+ {[%clk 0:00:08]} 59. Kg2 {[%clk 0:00:10]}  Rd7 {[%clk 0:00:08]} 60. Rf3 {[%clk 0:00:08]}  Rd2 {[%clk 0:00:08]} 61. g4 {[%clk 0:00:08]}  Ke4 {[%clk 0:00:08]} 62. Rf8 {[%clk 0:00:08]}  Rd5 {[%clk 0:00:08]} 63. Kg3 {[%clk 0:00:08]}  Rd3+ {[%clk 0:00:08]} 64. Kh4 {[%clk 0:00:08]}  Rd2 {[%clk 0:00:08]} 65. Bg3 {[%clk 0:00:08]}  Rd5 {[%clk 0:00:08]} 66. g5 {[%clk 0:00:08]}  Rd1 {[%clk 0:00:07]} 67. g6 {[%clk 0:00:08]}  Rh1+ {[%clk 0:00:08]} 68. Kg5 {[%clk 0:00:08]}  Rg1 {[%clk 0:00:08]} 69. g7 {[%clk 0:00:07]}  Rxg3+ {[%clk 0:00:08]} 70. Kf6 {[%clk 0:00:07]}  Rf3+ {[%clk 0:00:07]} 71. Ke7 {[%clk 0:00:07]}  Rg3 {[%clk 0:00:05]} 72. g8=Q {[%clk 0:00:07]}  Rxg8 {[%clk 0:00:06]} 73. Rxg8 {[%clk 0:00:08]}  Ke5 {[%clk 0:00:06]} 74. Rg6 {[%clk 0:00:08]}  Kd5 {[%clk 0:00:07]} 75. Re6 {[%clk 0:00:08]}  Kd4 {[%clk 0:00:07]} 76. Kd6 {[%clk 0:00:08]}  Kc4 {[%clk 0:00:08]} 77. Re5 {[%clk 0:00:09]}  Kd4 {[%clk 0:00:09]} 78. Ke6 {[%clk 0:00:09]}  Kc4 {[%clk 0:00:10]} 79. Rd5 {[%clk 0:00:09]}  Kc3 {[%clk 0:00:10]} 80. Ke5 {[%clk 0:00:10]}  Kc4 {[%clk 0:00:11]} 81. Ke4 {[%clk 0:00:10]}  Kc3 {[%clk 0:00:11]} 82. Rd4 {[%clk 0:00:11]}  Kb3 {[%clk 0:00:12]} 83. Kd3 {[%clk 0:00:11]}  Ka3 {[%clk 0:00:12]} 84. Rc4 {[%clk 0:00:10]}  Kb3 {[%clk 0:00:12]} 85. Rd4 {[%clk 0:00:10]}  Ka3 {[%clk 0:00:12]} 86. Kc2 {[%clk 0:00:11]}  Ka2 {[%clk 0:00:12]} 87. Ra4# {[%clk 0:00:11]} 1-0


[Site "https://www.chess.com"]

[Event "Titled Tuesday Blitz March 07 Early 2023"]
[White "Hindermann, Felix"]
[Black "Kozin, Yuri"]
[WhiteFideId "1305212"]
[BlackFideId "4129920"]
[WhiteElo "2206"]
[BlackElo "2513"]
[Result "1-0"]
[Round "05"]
[TimeControl "180+2"]
[Date "2023.03.07"]
[WhiteClock "0:01:05"]
[BlackClock "0:00:11"]

1. e4 {[%clk 0:02:57]}  c5 {[%clk 0:02:58]} 2. c3 {[%clk 0:02:57]}  Nf6 {[%clk 0:02:57]} 3. e5 {[%clk 0:02:57]}  Nd5 {[%clk 0:02:57]} 4. d4 {[%clk 0:02:58]}  cxd4 {[%clk 0:02:57]} 5. Qxd4 {[%clk 0:02:59]}  e6 {[%clk 0:02:56]} 6. Nf3 {[%clk 0:02:59]}  Nc6 {[%clk 0:02:55]} 7. Qe4 {[%clk 0:03:00]}  d6 {[%clk 0:02:53]} 8. Bb5 {[%clk 0:03:00]}  Bd7 {[%clk 0:02:52]} 9. c4 {[%clk 0:03:00]}  Nc7 {[%clk 0:02:49]} 10. exd6 {[%clk 0:03:01]}  Bxd6 {[%clk 0:02:45]} 11. O-O {[%clk 0:03:01]}  a6 {[%clk 0:02:39]} 12. Ba4 {[%clk 0:03:00]}  b5 {[%clk 0:02:22]} 13. Rd1 {[%clk 0:02:55]}  Qe7 {[%clk 0:02:09]} 14. Bc2 {[%clk 0:02:49]}  bxc4 {[%clk 0:02:06]} 15. Nbd2 {[%clk 0:02:37]}  Nd5 {[%clk 0:01:57]} 16. Nxc4 {[%clk 0:02:35]}  Bc7 {[%clk 0:01:52]} 17. Qg4 {[%clk 0:02:16]}  g6 {[%clk 0:01:41]} 18. Bg5 {[%clk 0:01:57]}  f6 {[%clk 0:01:39]} 19. Bh6 {[%clk 0:01:47]}  Ncb4 {[%clk 0:01:29]} 20. Bb3 {[%clk 0:01:40]}  e5 {[%clk 0:00:51]} 21. Qh4 {[%clk 0:01:40]}  Be6 {[%clk 0:00:42]} 22. a3 {[%clk 0:01:29]}  Nc6 {[%clk 0:00:39]} 23. Ncxe5 {[%clk 0:01:24]}  Nxe5 {[%clk 0:00:33]} 24. Nxe5 {[%clk 0:01:18]}  Bxe5 {[%clk 0:00:32]} 25. Bxd5 {[%clk 0:01:12]}  Bxd5 {[%clk 0:00:27]} 26. Rxd5 {[%clk 0:01:13]}  Bxb2 {[%clk 0:00:26]} 27. Rad1 {[%clk 0:01:12]}  Be5 {[%clk 0:00:15]} 28. Qa4+ {[%clk 0:01:08]}  Kf7 {[%clk 0:00:11]} 29. Rd7 {[%clk 0:01:08]}  Rhe8 {[%clk 0:00:11]} 30. Qc4# {[%clk 0:01:05]} 1-0


[Site "https://www.chess.com"]

[Event "Titled Tuesday Blitz March 07 Early 2023"]
[White "Garic, Radomir"]
[Black "Osmak, Yuliia"]
[WhiteFideId "920959"]
[BlackFideId "14101602"]
[WhiteElo "2204"]
[BlackElo "2271"]
[Result "0-1"]
[Round "05"]
[TimeControl "180+2"]
[Date "2023.03.07"]
[WhiteClock "0:00:03"]
[BlackClock "0:00:04"]

1. e4 {[%clk 0:03:00]}  d6 {[%clk 0:02:43]} 2. d4 {[%clk 0:02:58]}  Nf6 {[%clk 0:02:42]} 3. Nc3 {[%clk 0:02:58]}  e5 {[%clk 0:02:42]} 4. Nf3 {[%clk 0:02:58]}  Nbd7 {[%clk 0:02:41]} 5. Bc4 {[%clk 0:02:58]}  Be7 {[%clk 0:02:42]} 6. O-O {[%clk 0:02:58]}  O-O {[%clk 0:02:41]} 7. Re1 {[%clk 0:02:58]}  c6 {[%clk 0:02:41]} 8. a4 {[%clk 0:02:58]}  a5 {[%clk 0:02:40]} 9. Ba2 {[%clk 0:02:56]}  Qc7 {[%clk 0:02:36]} 10. Qd3 {[%clk 0:02:56]}  h6 {[%clk 0:02:35]} 11. h3 {[%clk 0:02:56]}  Re8 {[%clk 0:02:26]} 12. Qc4 {[%clk 0:02:56]}  Rf8 {[%clk 0:02:22]} 13. Nd5 {[%clk 0:02:55]}  Qd8 {[%clk 0:02:14]} 14. Nxe7+ {[%clk 0:02:54]}  Qxe7 {[%clk 0:02:15]} 15. dxe5 {[%clk 0:02:52]}  Nxe5 {[%clk 0:02:13]} 16. Nxe5 {[%clk 0:02:52]}  dxe5 {[%clk 0:02:12]} 17. Qc3 {[%clk 0:02:48]}  Re8 {[%clk 0:02:02]} 18. Qg3 {[%clk 0:02:30]}  Kh7 {[%clk 0:01:53]} 19. Bd2 {[%clk 0:02:25]}  Be6 {[%clk 0:01:43]} 20. Bxe6 {[%clk 0:02:05]}  Qxe6 {[%clk 0:01:39]} 21. Bc3 {[%clk 0:02:04]}  Nh5 {[%clk 0:01:17]} 22. Qf3 {[%clk 0:02:04]}  Nf4 {[%clk 0:01:16]} 23. Rad1 {[%clk 0:01:52]}  b6 {[%clk 0:01:15]} 24. Rd2 {[%clk 0:01:50]}  Rad8 {[%clk 0:01:14]} 25. Red1 {[%clk 0:01:45]}  Rxd2 {[%clk 0:01:13]} 26. Rxd2 {[%clk 0:01:46]}  Qg6 {[%clk 0:01:07]} 27. Kh2 {[%clk 0:01:22]}  Re6 {[%clk 0:01:06]} 28. g3 {[%clk 0:01:09]}  Nh5 {[%clk 0:01:05]} 29. Qf5 {[%clk 0:01:04]}  Nf6 {[%clk 0:00:59]} 30. Qxg6+ {[%clk 0:00:57]}  Kxg6 {[%clk 0:00:59]} 31. f3 {[%clk 0:00:57]}  Ne8 {[%clk 0:00:45]} 32. Rd7 {[%clk 0:00:53]}  Nd6 {[%clk 0:00:41]} 33. b3 {[%clk 0:00:39]}  f5 {[%clk 0:00:33]} 34. Bxe5 {[%clk 0:00:33]}  Nf7 {[%clk 0:00:15]} 35. exf5+ {[%clk 0:00:25]}  Kxf5 {[%clk 0:00:15]} 36. f4 {[%clk 0:00:24]}  Nxe5 {[%clk 0:00:14]} 37. fxe5 {[%clk 0:00:23]}  Rxe5 {[%clk 0:00:14]} 38. Rd2 {[%clk 0:00:17]}  Re3 {[%clk 0:00:13]} 39. Kg2 {[%clk 0:00:16]}  Rc3 {[%clk 0:00:13]} 40. Kf2 {[%clk 0:00:15]}  Ke4 {[%clk 0:00:10]} 41. Re2+ {[%clk 0:00:13]}  Kd4 {[%clk 0:00:10]} 42. Rd2+ {[%clk 0:00:11]}  Kc5 {[%clk 0:00:10]} 43. g4 {[%clk 0:00:08]}  g5 {[%clk 0:00:09]} 44. Kg2 {[%clk 0:00:07]}  Kb4 {[%clk 0:00:09]} 45. Kf2 {[%clk 0:00:06]}  b5 {[%clk 0:00:08]} 46. axb5 {[%clk 0:00:06]}  cxb5 {[%clk 0:00:09]} 47. Ke2 {[%clk 0:00:05]}  Ka3 {[%clk 0:00:09]} 48. Kd1 {[%clk 0:00:04]}  Rxh3 {[%clk 0:00:08]} 49. Rd5 {[%clk 0:00:04]}  Kb4 {[%clk 0:00:08]} 50. Rd4+ {[%clk 0:00:04]}  Kc3 {[%clk 0:00:07]} 51. Re4 {[%clk 0:00:03]}  Rh1+ {[%clk 0:00:06]} 52. Ke2 {[%clk 0:00:03]}  Kxc2 {[%clk 0:00:07]} 53. Re5 {[%clk 0:00:03]}  b4 {[%clk 0:00:06]} 54. Rxa5 {[%clk 0:00:02]}  Kxb3 {[%clk 0:00:06]} 55. Ra1 {[%clk 0:00:02]}  Rxa1 {[%clk 0:00:03]} 56. Kd2 {[%clk 0:00:02]}  Ra2+ {[%clk 0:00:04]} 57. Kd3 {[%clk 0:00:03]}  Ra6 {[%clk 0:00:04]} 0-1


[Site "https://www.chess.com"]

[Event "Titled Tuesday Blitz March 07 Early 2023"]
[White "Matveeva, Olga"]
[Black "Fernandez Garcia, Gumersindo"]
[WhiteFideId "24107018"]
[BlackFideId "24516740"]
[WhiteElo "2056"]
[BlackElo "2093"]
[Result "0-1"]
[Round "05"]
[TimeControl "180+2"]
[Date "2023.03.07"]
[WhiteClock "0:00:01"]
[BlackClock "0:00:42"]

1. d4 {[%clk 0:03:00]}  Nf6 {[%clk 0:02:59]} 2. c4 {[%clk 0:03:00]}  e6 {[%clk 0:02:54]} 3. g3 {[%clk 0:03:00]}  d5 {[%clk 0:02:54]} 4. Nf3 {[%clk 0:02:59]}  Be7 {[%clk 0:02:51]} 5. Bg2 {[%clk 0:02:59]}  O-O {[%clk 0:02:51]} 6. O-O {[%clk 0:03:00]}  dxc4 {[%clk 0:02:48]} 7. Qc2 {[%clk 0:03:00]}  b6 {[%clk 0:02:48]} 8. Nbd2 {[%clk 0:02:41]}  Bb7 {[%clk 0:02:47]} 9. Nxc4 {[%clk 0:02:40]}  Nbd7 {[%clk 0:02:46]} 10. Bf4 {[%clk 0:02:30]}  c5 {[%clk 0:02:45]} 11. dxc5 {[%clk 0:02:06]}  Bxc5 {[%clk 0:02:42]} 12. Rad1 {[%clk 0:01:51]}  Qe7 {[%clk 0:02:39]} 13. Bd6 {[%clk 0:01:27]}  Bxd6 {[%clk 0:02:36]} 14. Nxd6 {[%clk 0:01:27]}  Bd5 {[%clk 0:02:31]} 15. Nb5 {[%clk 0:00:57]}  Rfc8 {[%clk 0:02:18]} 16. Qa4 {[%clk 0:00:52]}  a6 {[%clk 0:02:16]} 17. Nbd4 {[%clk 0:00:46]}  b5 {[%clk 0:02:15]} 18. Qa5 {[%clk 0:00:43]}  Nc5 {[%clk 0:02:10]} 19. Rc1 {[%clk 0:00:36]}  h6 {[%clk 0:01:55]} 20. Rfd1 {[%clk 0:00:29]}  Nfd7 {[%clk 0:01:34]} 21. b3 {[%clk 0:00:22]}  Nb7 {[%clk 0:01:33]} 22. Qe1 {[%clk 0:00:20]}  Nf6 {[%clk 0:01:30]} 23. Ne5 {[%clk 0:00:17]}  Bxg2 {[%clk 0:01:29]} 24. Kxg2 {[%clk 0:00:18]}  Nd6 {[%clk 0:01:15]} 25. Ndc6 {[%clk 0:00:17]}  Qf8 {[%clk 0:01:12]} 26. f3 {[%clk 0:00:17]}  Rc7 {[%clk 0:01:08]} 27. Qd2 {[%clk 0:00:14]}  Nf5 {[%clk 0:01:04]} 28. e4 {[%clk 0:00:10]}  Ne7 {[%clk 0:00:58]} 29. Qa5 {[%clk 0:00:08]}  Rac8 {[%clk 0:00:55]} 30. Nxe7+ {[%clk 0:00:07]}  Qxe7 {[%clk 0:00:53]} 31. Rxc7 {[%clk 0:00:07]}  Qxc7 {[%clk 0:00:53]} 32. Qxc7 {[%clk 0:00:06]}  Rxc7 {[%clk 0:00:53]} 33. Rd8+ {[%clk 0:00:06]}  Kh7 {[%clk 0:00:53]} 34. Rd2 {[%clk 0:00:05]}  Ne8 {[%clk 0:00:53]} 35. Kf2 {[%clk 0:00:05]}  f6 {[%clk 0:00:53]} 36. Nd3 {[%clk 0:00:04]}  Kg6 {[%clk 0:00:51]} 37. Ke3 {[%clk 0:00:05]}  Kf7 {[%clk 0:00:51]} 38. Nb4 {[%clk 0:00:03]}  a5 {[%clk 0:00:48]} 39. Nd3 {[%clk 0:00:03]}  e5 {[%clk 0:00:46]} 40. f4 {[%clk 0:00:03]}  Ke6 {[%clk 0:00:45]} 41. f5+ {[%clk 0:00:02]}  Ke7 {[%clk 0:00:45]} 42. b4 {[%clk 0:00:02]}  Nd6 {[%clk 0:00:42]} 43. bxa5 {[%clk 0:00:01]}  Nc4+ {[%clk 0:00:42]} 0-1


[Site "https://www.chess.com"]

[Event "Titled Tuesday Blitz March 07 Early 2023"]
[White "Liu, Casper"]
[Black "TimGrutter03"]
[WhiteFideId "1454153"]
[WhiteElo "2221"]
[BlackElo "2502"]
[Result "1-0"]
[Round "05"]
[TimeControl "180+2"]
[Date "2023.03.07"]
[WhiteClock "0:00:50"]
[BlackClock "0:00:01"]

1. d4 {[%clk 0:02:56]}  Nf6 {[%clk 0:02:59]} 2. c4 {[%clk 0:02:55]}  g6 {[%clk 0:03:00]} 3. Nc3 {[%clk 0:02:56]}  Bg7 {[%clk 0:03:00]} 4. e4 {[%clk 0:02:57]}  d6 {[%clk 0:03:01]} 5. Nf3 {[%clk 0:02:57]}  O-O {[%clk 0:03:00]} 6. Be3 {[%clk 0:02:57]}  e5 {[%clk 0:02:57]} 7. dxe5 {[%clk 0:02:57]}  dxe5 {[%clk 0:02:56]} 8. Nxe5 {[%clk 0:02:55]}  Qxd1+ {[%clk 0:02:51]} 9. Rxd1 {[%clk 0:02:53]}  Nxe4 {[%clk 0:02:50]} 10. Nxe4 {[%clk 0:02:50]}  Bxe5 {[%clk 0:02:49]} 11. Bd4 {[%clk 0:02:51]}  Bxd4 {[%clk 0:02:44]} 12. Rxd4 {[%clk 0:02:52]}  Nc6 {[%clk 0:02:44]} 13. Rd2 {[%clk 0:02:23]}  Re8 {[%clk 0:02:44]} 14. Re2 {[%clk 0:02:23]}  Kg7 {[%clk 0:02:42]} 15. Nc3 {[%clk 0:02:17]}  Be6 {[%clk 0:02:42]} 16. Rd2 {[%clk 0:02:12]}  Bxc4+ {[%clk 0:02:38]} 17. Kd1 {[%clk 0:02:11]}  Bxf1 {[%clk 0:02:33]} 18. Rxf1 {[%clk 0:02:12]}  Rad8 {[%clk 0:02:30]} 19. Re1 {[%clk 0:02:10]}  Rxd2+ {[%clk 0:02:25]} 20. Kxd2 {[%clk 0:02:10]}  Rd8+ {[%clk 0:02:26]} 21. Kc1 {[%clk 0:02:09]}  Nb4 {[%clk 0:02:24]} 22. Re7 {[%clk 0:02:06]}  Na6 {[%clk 0:02:16]} 23. Nb5 {[%clk 0:01:56]}  Rd5 {[%clk 0:02:07]} 24. Nxa7 {[%clk 0:01:44]}  Kf6 {[%clk 0:02:06]} 25. Re3 {[%clk 0:01:44]}  Nb4 {[%clk 0:02:04]} 26. Rf3+ {[%clk 0:01:36]}  Ke6 {[%clk 0:01:58]} 27. a3 {[%clk 0:01:32]}  Nd3+ {[%clk 0:01:58]} 28. Kb1 {[%clk 0:01:32]}  f5 {[%clk 0:01:44]} 29. Nb5 {[%clk 0:01:31]}  Kd7 {[%clk 0:01:17]} 30. Nc3 {[%clk 0:01:24]}  Rd4 {[%clk 0:01:12]} 31. Nb5 {[%clk 0:01:24]}  Rd5 {[%clk 0:01:08]} 32. Nc3 {[%clk 0:01:23]}  Rd6 {[%clk 0:00:57]} 33. Nb5 {[%clk 0:01:23]}  Ne1 {[%clk 0:00:50]} 34. Nxd6 {[%clk 0:01:07]}  Nxf3 {[%clk 0:00:50]} 35. Nxf5 {[%clk 0:00:57]}  Nd2+ {[%clk 0:00:09]} 36. Kc2 {[%clk 0:00:57]}  Ne4 {[%clk 0:00:08]} 37. f3 {[%clk 0:00:57]}  Nf6 {[%clk 0:00:02]} 38. Ne3 {[%clk 0:00:57]}  Kd6 {[%clk 0:00:01]} 39. Kd3 {[%clk 0:00:55]}  Kc5 {[%clk 0:00:01]} 40. f4 {[%clk 0:00:50]} 1-0


[Site "https://www.chess.com"]